{"text_format":"3","workbook":"xlsx","n_sheets":2,"sheets":["Başlangıç","Bayram bütçesi planlayıcı"],"not_rendered":{"defined_names":2},"read":"whole","date_system":"1900"}

{"sheet":"Başlangıç","index":0,"n_rows":4,"n_cols":2,"rows_kept":4}
[null,"Bu şablon nasıl kullanılır"]
[null,"Bu Bayram bütçesi planlayıcısı ile giderlerinizi izleyin."]
[null,"Başlamak için her bir kategori tablosuna Bütçenizi ve Gerçek giderlerinizi girin."]
[null,"Bayram bütçesi, Toplam gerçek harcamanız ve Fark sizin için otomatik olarak hesaplanır."]

{"sheet":"Bayram bütçesi planlayıcı","index":1,"n_rows":36,"n_cols":14,"rows_kept":36,"merged":[[0,2,5,7],[2,10,2,11],[8,2,8,5],[8,10,8,13],[18,2,18,5],[18,10,18,13],[29,2,29,5],[29,10,29,13]]}
[null,null,"Bayram bütçesi \nplanlayıcı"]
[]
[{"$nulls":10},"BAYRAM BÜTÇESİ",null,null,{"$f":"SUM(Hediyeler[Bütçe],Paket[Bütçe],(Seyahat[Bütçe],(Yemekler[Bütçe],(Eğlence[Bütçe],Çeşitli[Bütçe]))))","v":{"v":750,"d":"₺750.00"}}]
[{"$nulls":10},"FİİLİ HARCAMA",null,null,{"$f":"SUM((Hediyeler[Fiili],(Paket[Fiili],(Seyahat[Fiili],(Yemekler[Fiili],(Eğlence[Fiili],(Çeşitli[Fiili])))))))","v":{"v":820,"d":"₺820.00"}}]
[]
[{"$nulls":10},"FARK (bütçenin altında/üstünde)",null,null,{"$f":"SUM(N3-N4)","v":{"v":-70,"d":"-₺70.00"}}]
[]
[]
[null,null,"HEDİYELER",{"$nulls":7},"TATİL YEMEKLERİ"]
[null,null,"Öğe","Bütçe","Fiili","Fark",{"$nulls":4},"Öğe","Bütçe","Fiili","Fark"]
[null,null,"Aile",{"v":500,"d":"₺500.00"},{"v":495,"d":"₺495.00"},{"$f":"Hediyeler[[#This Row],[Bütçe]]-Hediyeler[[#This Row],[Fiili]]","v":{"v":5,"d":"₺5.00"}},{"$nulls":4},"Market",null,null,{"$f":"Yemekler[[#This Row],[Bütçe]]-Yemekler[[#This Row],[Fiili]]","v":{"v":0,"d":"₺0.00"}}]
[null,null,"Arkadaşlar",{"v":250,"d":"₺250.00"},{"v":325,"d":"₺325.00"},{"$f":"Hediyeler[[#This Row],[Bütçe]]-Hediyeler[[#This Row],[Fiili]]","v":{"v":-75,"d":"-₺75.00"}},{"$nulls":4},"İçkiler",null,null,{"$f":"Yemekler[[#This Row],[Bütçe]]-Yemekler[[#This Row],[Fiili]]","v":{"v":0,"d":"₺0.00"}}]
[null,null,"İş Arkadaşları",null,null,{"$f":"Hediyeler[[#This Row],[Bütçe]]-Hediyeler[[#This Row],[Fiili]]","v":{"v":0,"d":"₺0.00"}},{"$nulls":4},"Dekorasyonlar",null,null,{"$f":"Yemekler[[#This Row],[Bütçe]]-Yemekler[[#This Row],[Fiili]]","v":{"v":0,"d":"₺0.00"}}]
[null,null,"Öğretmenler, dadılar, çocuk bakıcıları, vb.",null,null,{"$f":"Hediyeler[[#This Row],[Bütçe]]-Hediyeler[[#This Row],[Fiili]]","v":{"v":0,"d":"₺0.00"}},{"$nulls":4},"Diğer (bu satırın son sütununda satır ekleme sekmesi)",null,null,{"$f":"Yemekler[[#This Row],[Bütçe]]-Yemekler[[#This Row],[Fiili]]","v":{"v":0,"d":"₺0.00"}}]
[null,null,"Bağışlar",null,null,{"$f":"Hediyeler[[#This Row],[Bütçe]]-Hediyeler[[#This Row],[Fiili]]","v":{"v":0,"d":"₺0.00"}},{"$nulls":7},{"$f":"Yemekler[[#This Row],[Bütçe]]-Yemekler[[#This Row],[Fiili]]","v":{"v":0,"d":"₺0.00"}}]
[null,null,"Diğer (bu satırın son sütununda satır ekleme sekmesi)",null,null,{"$f":"Hediyeler[[#This Row],[Bütçe]]-Hediyeler[[#This Row],[Fiili]]","v":{"v":0,"d":"₺0.00"}}]
[null,null,"Toplam",{"$f":"SUBTOTAL(109,Hediyeler[Bütçe])","v":{"v":750,"d":"₺750.00"}},{"$f":"SUBTOTAL(109,Hediyeler[Fiili])","v":{"v":820,"d":"₺820.00"}},{"$f":"SUBTOTAL(109,Hediyeler[Fark])","v":{"v":-70,"d":"-₺70.00"}},{"$nulls":4},"Toplam",{"$f":"SUBTOTAL(109,Yemekler[Bütçe])","v":{"v":0,"d":"₺0.00"}},{"$f":"SUBTOTAL(109,Yemekler[Fiili])","v":{"v":0,"d":"₺0.00"}},{"$f":"SUBTOTAL(109,Yemekler[Fark])","v":{"v":0,"d":"₺0.00"}}]
[]
[null,null,"PAKET",{"$nulls":7},"EĞLENCE"]
[null,null,"Öğe","Bütçe","Fiili","Fark",{"$nulls":4},"Öğe","Bütçe","Fiili","Fark"]
[null,null,"Hediye paketi",null,null,{"$f":"Paket[[#This Row],[Bütçe]]-Paket[[#This Row],[Fiili]]","v":{"v":0,"d":"₺0.00"}},{"$nulls":4},"Parti yardımcısı (barmen, yemek şirketi, temizleyici, vb.)",null,null,{"$f":"Eğlence[[#This Row],[Bütçe]]-Eğlence[[#This Row],[Fiili]]","v":{"v":0,"d":"₺0.00"}}]
[null,null,"Etiketler",null,null,{"$f":"Paket[[#This Row],[Bütçe]]-Paket[[#This Row],[Fiili]]","v":{"v":0,"d":"₺0.00"}},{"$nulls":4},"Dekorasyonlar",null,null,{"$f":"Eğlence[[#This Row],[Bütçe]]-Eğlence[[#This Row],[Fiili]]","v":{"v":0,"d":"₺0.00"}}]
[null,null,"Malzemeler (kurdele, bant, vb.)",null,null,{"$f":"Paket[[#This Row],[Bütçe]]-Paket[[#This Row],[Fiili]]","v":{"v":0,"d":"₺0.00"}},{"$nulls":4},"Yiyecek ve içecek",null,null,{"$f":"Eğlence[[#This Row],[Bütçe]]-Eğlence[[#This Row],[Fiili]]","v":{"v":0,"d":"₺0.00"}}]
[null,null,"Kutular",null,null,{"$f":"Paket[[#This Row],[Bütçe]]-Paket[[#This Row],[Fiili]]","v":{"v":0,"d":"₺0.00"}},{"$nulls":4},"Giyim",null,null,{"$f":"Eğlence[[#This Row],[Bütçe]]-Eğlence[[#This Row],[Fiili]]","v":{"v":0,"d":"₺0.00"}}]
[null,null,"Posta",null,null,{"$f":"Paket[[#This Row],[Bütçe]]-Paket[[#This Row],[Fiili]]","v":{"v":0,"d":"₺0.00"}},{"$nulls":4},"Biletler",null,null,{"$f":"Eğlence[[#This Row],[Bütçe]]-Eğlence[[#This Row],[Fiili]]","v":{"v":0,"d":"₺0.00"}}]
[null,null,"Diğer (bu satırın son sütununda satır ekleme sekmesi)",null,null,{"$f":"Paket[[#This Row],[Bütçe]]-Paket[[#This Row],[Fiili]]","v":{"v":0,"d":"₺0.00"}},{"$nulls":4},"Dışarıda yemek",null,null,{"$f":"Eğlence[[#This Row],[Bütçe]]-Eğlence[[#This Row],[Fiili]]","v":{"v":0,"d":"₺0.00"}}]
[{"$nulls":10},"Diğer (bu satırın son sütununda satır ekleme sekmesi)",null,null,{"$f":"Eğlence[[#This Row],[Bütçe]]-Eğlence[[#This Row],[Fiili]]","v":{"v":0,"d":"₺0.00"}}]
[null,null,"Toplam",{"$f":"SUBTOTAL(109,Paket[Bütçe])","v":{"v":0,"d":"₺0.00"}},{"$f":"SUBTOTAL(109,Paket[Fiili])","v":{"v":0,"d":"₺0.00"}},{"$f":"SUBTOTAL(109,Paket[Fark])","v":{"v":0,"d":"₺0.00"}},{"$nulls":4},"Toplam",{"$f":"SUBTOTAL(109,Eğlence[Bütçe])","v":{"v":0,"d":"₺0.00"}},{"$f":"SUBTOTAL(109,Eğlence[Fiili])","v":{"v":0,"d":"₺0.00"}},{"$f":"SUBTOTAL(109,Eğlence[Fark])","v":{"v":0,"d":"₺0.00"}}]
[]
[null,null,"SEYAHAT",{"$nulls":7},"ÇEŞİTLİ"]
[null,null,"Öğe","Bütçe","Fiili","Fark",{"$nulls":4},"Öğe","Bütçe","Fiili","Fark"]
[null,null,"Uçak Bileti",null,null,{"$f":"Seyahat[[#This Row],[Bütçe]]-Seyahat[[#This Row],[Fiili]]","v":{"v":0,"d":"₺0.00"}},{"$nulls":4},"Tatil fotoğrafları",null,null,{"$f":"Çeşitli[[#This Row],[Bütçe]]-Çeşitli[[#This Row],[Fiili]]","v":{"v":0,"d":"₺0.00"}}]
[null,null,"Konaklama",null,null,{"$f":"Seyahat[[#This Row],[Bütçe]]-Seyahat[[#This Row],[Fiili]]","v":{"v":0,"d":"₺0.00"}},{"$nulls":4},"Yakıt ",null,null,{"$f":"Çeşitli[[#This Row],[Bütçe]]-Çeşitli[[#This Row],[Fiili]]","v":{"v":0,"d":"₺0.00"}}]
[null,null,"Ulaşım",null,null,{"$f":"Seyahat[[#This Row],[Bütçe]]-Seyahat[[#This Row],[Fiili]]","v":{"v":0,"d":"₺0.00"}},{"$nulls":4},"Diğer (bu satırın son sütununda satır ekleme sekmesi)",null,null,{"$f":"Çeşitli[[#This Row],[Bütçe]]-Çeşitli[[#This Row],[Fiili]]","v":{"v":0,"d":"₺0.00"}}]
[null,null,"Diğer (bu satırın son sütununda satır ekleme sekmesi)",null,null,{"$f":"Seyahat[[#This Row],[Bütçe]]-Seyahat[[#This Row],[Fiili]]","v":{"v":0,"d":"₺0.00"}}]
[null,null,"Toplam",{"$f":"SUBTOTAL(109,Seyahat[Bütçe])","v":{"v":0,"d":"₺0.00"}},{"$f":"SUBTOTAL(109,Seyahat[Fiili])","v":{"v":0,"d":"₺0.00"}},{"$f":"SUBTOTAL(109,Seyahat[Fark])","v":{"v":0,"d":"₺0.00"}},{"$nulls":4},"Toplam",{"$f":"SUBTOTAL(109,Çeşitli[Bütçe])","v":{"v":0,"d":"₺0.00"}},{"$f":"SUBTOTAL(109,Çeşitli[Fiili])","v":{"v":0,"d":"₺0.00"}},{"$f":"SUBTOTAL(109,Çeşitli[Fark])","v":{"v":0,"d":"₺0.00"}}]